fUSD/lending_fUSD_20260202
["ID","MTS","AMOUNT","RATE_DAILY","PERIOD"]
[404254302,1770007840492,-885.86323315,0.00013435,2]
[404254303,1770007840502,-11957.40243397,0.00013436,2]
[404254304,1770007840511,-16455.58898594,0.00013492,2]
[404254305,1770007840521,-15078.45490139,0.00013492,2]
[404254306,1770007840531,-164.0,0.00013492,2]
[404254307,1770007840541,-293.0506095,0.00013492,2]
[404254308,1770007840551,-166.66,0.00013557,2]
[404254309,1770007840560,-500.0,0.0001356,2]
[404254310,1770007840569,-500.0,0.00013567,2]
[404254311,1770007840582,-663.0,0.00013609,2]
[404254312,1770007840592,-1267.37023796,0.00013649,2]
[404254313,1770007840602,-1267.37023796,0.00013649,2]
[404254314,1770007840612,-500.0,0.00013698,2]
[404254315,1770007840621,-500.0,0.00013698,2]
[404254316,1770007840631,-500.0,0.00013698,2]
[404254317,1770007840641,-500.0,0.00013698,2]
[404254318,1770007840651,-500.0,0.00013698,2]
[404254319,1770007840662,-508.51455349,0.00013698,2]
[404254320,1770007840671,-500.0,0.00013698,2]
[404254321,1770007840681,-500.0,0.00013698,2]
[404254322,1770007840691,-500.0,0.00013698,2]
[404254323,1770007840701,-500.0,0.00013698,2]
[404254324,1770007840710,-500.0,0.00013698,2]
[404254325,1770007840720,-500.0,0.00013698,2]
[404254326,1770007840729,-500.0,0.00013698,2]
[404254327,1770007840739,-500.0,0.00013698,2]
[404254328,1770007840749,-500.0,0.00013698,2]
[404254329,1770007840759,-500.0,0.00013698,2]
[404254330,1770007840771,-500.0,0.00013698,2]
[404254331,1770007840781,-409.78,0.00013698,2]
[404254332,1770007840791,-500.0,0.00013698,2]
[404254333,1770007840801,-500.0,0.00013698,2]
[404254334,1770007840811,-500.0,0.00013698,2]
[404254335,1770007840820,-500.0,0.00013698,2]
[404254336,1770007840836,-500.0,0.00013698,2]
[404254337,1770007840845,-500.0,0.00013698,2]
[404254338,1770007840855,-500.0,0.00013698,2]
[404254339,1770007840864,-500.0,0.00013698,2]
[404254340,1770007840875,-500.0,0.00013698,2]
[404254341,1770007840884,-500.0,0.00013698,2]
[404254342,1770007840893,-500.0,0.00013698,2]
[404254343,1770007840905,-508.9071214,0.00013698,2]
[404254344,1770007840916,-345.62119018,0.00013698,2]
[404254345,1770007840926,-500.0,0.00013698,2]
[404254346,1770007840935,-327.30466151,0.00013698,2]
[404254347,1770007840945,-500.0,0.00013698,2]
[404254348,1770007840954,-500.0,0.00013698,2]
[404254349,1770007840963,-636.97,0.00013698,2]
[404254350,1770007840975,-500.0,0.00013698,2]
[404254351,1770007840984,-208.77047208,0.00013698,2]
[404254352,1770007840994,-500.0,0.00013698,2]
[404254353,1770007841004,-500.0,0.00013698,2]
[404254354,1770007841013,-500.0,0.00013698,2]
[404254355,1770007841023,-500.0,0.00013698,2]
[404254356,1770007841032,-500.0,0.00013698,2]
[404254357,1770007841042,-500.0,0.00013698,2]
[404254358,1770007841051,-500.0,0.00013698,2]
[404254359,1770007841061,-500.0,0.00013698,2]
[404254360,1770007841070,-500.0,0.00013698,2]
[404254361,1770007841080,-500.0,0.00013698,2]
[404254362,1770007841091,-500.0,0.00013698,2]
[404254363,1770007841100,-502.51921833,0.00013698,2]
[404254364,1770007841110,-528.1929044,0.00013698,2]
[404254365,1770007841120,-500.0,0.00013698,2]
[404254366,1770007841130,-500.0,0.00013698,2]
[404254367,1770007841139,-500.0,0.00013698,2]
[404254368,1770007841149,-500.0,0.00013698,2]
[404254369,1770007841158,-500.0,0.00013698,2]
[404254370,1770007841167,-500.0,0.00013698,2]
[404254371,1770007841177,-500.0,0.00013698,2]
[404254372,1770007841187,-500.0,0.00013698,2]
[404254373,1770007841197,-581.80646883,0.00013698,2]
[404254374,1770007841206,-500.0,0.00013698,2]
[404254375,1770007841215,-500.0,0.00013698,2]
[404254376,1770007841225,-244.52182497,0.00013698,2]
[404254377,1770007841235,-586.19962979,0.00013698,2]
[404254378,1770007841244,-500.0,0.00013698,2]
[404254379,1770007841253,-500.0,0.00013698,2]
[404254380,1770007841262,-500.0,0.00013698,2]
[404254381,1770007841272,-500.0,0.00013698,2]
[404254382,1770007841282,-509.63945804,0.00013698,2]
[404254383,1770007841292,-500.0,0.00013698,2]
[404254384,1770007841301,-500.0,0.00013698,2]
[404254385,1770007841310,-500.0,0.00013698,2]
[404254386,1770007841319,-500.0,0.00013698,2]
[404254387,1770007841329,-500.0,0.00013698,2]
[404254388,1770007841339,-365.11189625,0.00013698,2]
[404254389,1770007841362,-500.0,0.00013698,2]
[404254390,1770007841373,-500.0,0.00013698,2]
[404254391,1770007841383,-500.0,0.00013698,2]
[404254392,1770007841393,-500.0,0.00013698,2]
[404254393,1770007841404,-512.55184272,0.00013698,2]
[404254394,1770007841413,-500.0,0.00013698,2]
[404254395,1770007841423,-500.0,0.00013698,2]
[404254396,1770007841433,-500.0,0.00013698,2]
[404254397,1770007841442,-500.0,0.00013698,2]
[404254398,1770007841452,-504.58121564,0.00013698,2]
[404254399,1770007841462,-500.0,0.00013698,2]
[404254400,1770007841472,-500.0,0.00013698,2]
[404254401,1770007841481,-500.0,0.00013698,2]
[404254402,1770007841491,-500.0,0.00013698,2]
[404254403,1770007841501,-500.0,0.00013698,2]
[404254404,1770007841511,-500.0,0.00013698,2]
[404254405,1770007841520,-500.0,0.00013698,2]
[404254406,1770007841530,-500.0,0.00013698,2]
[404254407,1770007841540,-500.0,0.00013698,2]
[404254408,1770007841550,-500.0,0.00013698,2]
[404254409,1770007841560,-500.0,0.00013698,2]
[404254410,1770007841570,-500.0,0.00013698,2]
[404254411,1770007841580,-500.0,0.00013698,2]
[404254412,1770007841590,-500.0,0.00013698,2]
[404254413,1770007841600,-500.0,0.00013698,2]
[404254414,1770007841610,-500.0,0.00013698,2]
[404254415,1770007841619,-193.34712914,0.00013698,2]
[404254416,1770007841629,-500.0,0.00013698,2]
[404254417,1770007841639,-500.0,0.00013698,2]
[404254418,1770007841649,-500.0,0.00013698,2]
[404254419,1770007841658,-500.0,0.00013698,2]
[404254420,1770007841668,-502.21564045,0.00013698,2]
[404254421,1770007842006,-753.99,0.00013699,2]
[404254422,1770007842017,-711.64,0.00013699,2]
[404254423,1770007842026,-1163.0,0.0001371,2]
[404254424,1770007842037,-151.64548884,0.0001372,2]
[404254425,1770007842047,-150.0,0.0001372,2]
[404254426,1770007842057,-150.0,0.0001372,2]
[404254427,1770007842066,-166.66,0.00013724,2]
[404254428,1770007842075,-500.0,0.00013841,2]
[404254429,1770007842085,-270.40551164,0.00013917,2]
[404254430,1770007842094,-500.0,0.00013952,2]
[404254431,1770007842104,-170.36367963,0.00013973,2]
[404254432,1770007842114,-500.60243683,0.00013973,2]
[404254433,1770007842124,-500.35121489,0.00013973,2]
[404254434,1770007842134,-500.0,0.00013973,2]
[404254435,1770007842143,-500.0,0.00013973,2]
[404254436,1770007842153,-446.80882298,0.00013973,2]
[404254437,1770007842167,-500.0,0.00013973,2]
[404254438,1770007842178,-303.03557478,0.00013973,2]
[404254439,1770007842188,-500.83637505,0.00013973,2]
[404254440,1770007842198,-169.47739756,0.00013973,2]
[404254441,1770007842207,-500.0,0.00013973,2]
[404254442,1770007842217,-500.0,0.00013973,2]
[404254443,1770007842227,-354.38080813,0.00013973,2]
[404254444,1770007842237,-500.0,0.00013973,2]
[404254445,1770007842247,-500.0,0.00013973,2]
[404254446,1770007842257,-500.0,0.00013973,2]
[404254447,1770007842267,-164.70227396,0.00013973,2]
[404254448,1770007842276,-500.0,0.00013973,2]
[404254449,1770007842286,-255.0,0.0001404,2]
[404254450,1770007842295,-150.00033856,0.00014041,2]
[404254451,1770007842305,-16455.58898594,0.00014043,2]
[404254452,1770007842316,-15078.45490139,0.00014043,2]
[404254453,1770007842326,-472.65129567,0.00014047,2]
[404254454,1770007842336,-500.0,0.00014108,2]
[404254455,1770007842346,-500.0,0.00014115,2]
[404254456,1770007842355,-166.66,0.00014177,2]
[404254457,1770007842365,-250.0,0.00014212,2]
[404254458,1770007842375,-300.0,0.00014212,2]
[404254459,1770007842385,-600.0,0.00014212,2]
[404254460,1770007842395,-300.0,0.00014212,2]
[404254461,1770007842405,-600.0,0.00014212,2]
[404254462,1770007842414,-600.0,0.00014212,2]
[404254463,1770007842424,-600.0,0.00014212,2]
[404254464,1770007842434,-195.0,0.00014212,2]
[404254465,1770007842444,-4131.4741805,0.00014212,2]
[404254466,1770007842453,-1680.0,0.00014234,2]
[404254467,1770007842463,-195.0,0.00014234,2]
[404254468,1770007842473,-600.0,0.00014234,2]
[404254469,1770007842483,-250.0,0.00014234,2]
[404254470,1770007842492,-502.19943206,0.00014234,2]
[404254471,1770007842502,-224.23763091,0.00014235,2]
[404254472,1770007842512,-195.0,0.00014235,2]
[404254473,1770007842525,-212.8,0.00014259,2]
[404254474,1770007842534,-1267.37023796,0.00014358,2]
[404254475,1770007842544,-1267.37023796,0.00014358,2]
[404254476,1770007842554,-1600.0,0.00014366,2]
[404254477,1770007842564,-753.99,0.00014384,2]
[404254478,1770007842573,-179.48047234,0.0001439,2]
[404254479,1770007842583,-255.39,0.0001449,2]
[404254480,1770007842594,-506.79391477,0.00014521,2]
[404254481,1770007842604,-1000.0,0.00014521,2]
[404254482,1770007842615,-547.44038762,0.00014521,2]
[404254483,1770007842625,-931.25406031,0.00014521,2]
[404254484,1770007842635,-428.50325514,0.00014521,2]
[404254485,1770007842645,-319.99376726,0.00014521,2]
[404254486,1770007842656,-256.05,0.00014576,2]
[404254487,1770007842665,-151.0,0.00014578,2]
[404254488,1770007842675,-151.0,0.00014578,2]
[404254489,1770007842685,-16455.58898594,0.00014594,2]
[404254490,1770007842694,-15078.45490139,0.00014594,2]
[404254491,1770007842705,-166.66,0.0001463,2]
[404254492,1770007842718,-500.0,0.00014656,2]
[404254493,1770007842727,-270.40551164,0.00014713,2]
[404254494,1770007842737,-1267.37023796,0.00015066,2]
[404254495,1770007842747,-1000.0,0.00015068,2]
[404254496,1770007842757,-753.99,0.00015068,2]
[404254497,1770007842767,-166.66,0.00015083,2]
[404254498,1770007842777,-16455.58898594,0.00015145,2]
[404254499,1770007842787,-15078.45490139,0.00015145,2]
[404254500,1770007842797,-236.43,0.000152,2]
[404254501,1770007842807,-500.0,0.00015204,2]
[404254502,1770007842818,-433.0,0.0001523,2]
[404254503,1770007842830,-23633.88,0.0001531,2]
[404254504,1770007842840,-9999.99,0.0001531,2]
[404254505,1770007842852,-501.29169705,0.00015473,2]
[404254506,1770007842863,-500.0,0.00015473,2]
[404254507,1770007842873,-500.0,0.00015473,2]
[404254508,1770007842883,-500.0,0.00015473,2]
[404254509,1770007842893,-163.12661798,0.00015473,2]
[404254510,1770007842907,-163.46067997,0.00015473,2]
[404254511,1770007842919,-500.0,0.00015473,2]
[404254512,1770007842929,-500.0,0.00015473,2]
[404254513,1770007842939,-500.63586771,0.00015473,2]
[404254515,1770007842949,-522.30858015,0.00015473,2]
[404254516,1770007842959,-500.0,0.00015473,2]
[404254517,1770007842969,-559.67308476,0.00015473,2]
[404254518,1770007842979,-501.33451157,0.00015473,2]
[404254519,1770007842989,-500.62768041,0.00015473,2]
[404254520,1770007842999,-500.6120606,0.00015473,2]
[404254521,1770007843009,-500.46237197,0.00015473,2]
[404254522,1770007843019,-163.34993731,0.00015473,2]
[404254523,1770007843028,-500.0,0.00015473,2]
[404254524,1770007843038,-511.82569439,0.00015473,2]
[404254525,1770007843048,-574.06272579,0.00015473,2]
[404254526,1770007843057,-500.0,0.00015473,2]
[404254527,1770007843067,-500.0,0.00015473,2]
[404254528,1770007843077,-500.0,0.00015473,2]
[404254529,1770007843087,-486.90150068,0.00015473,2]
[404254530,1770007843096,-500.0,0.00015473,2]
[404254531,1770007843106,-500.0,0.00015473,2]
[404254532,1770007843115,-500.0,0.00015473,2]
[404254533,1770007843124,-464.35211832,0.00015473,2]
[404254534,1770007843134,-500.40906893,0.00015473,2]
[404254535,1770007843143,-151.07783782,0.00015473,2]
[404254536,1770007843155,-160.54295648,0.00015473,2]
[404254537,1770007843165,-500.0,0.00015473,2]
[404254538,1770007843174,-500.0,0.00015473,2]
[404254539,1770007843184,-500.0,0.00015473,2]
[404254540,1770007843195,-500.0,0.00015473,2]
[404254541,1770007843204,-500.0,0.00015473,2]
[404254542,1770007843214,-500.0,0.00015473,2]
[404254543,1770007843223,-500.0,0.00015473,2]
[404254544,1770007843233,-500.0,0.00015473,2]
[404254545,1770007843243,-500.0,0.00015473,2]
[404254546,1770007843252,-500.0,0.00015473,2]
[404254547,1770007843262,-500.0,0.00015473,2]
[404254548,1770007843272,-500.0,0.00015473,2]
[404254549,1770007843281,-500.41005015,0.00015473,2]
[404254550,1770007843291,-500.0,0.00015473,2]
[404254551,1770007843300,-500.0,0.00015473,2]
[404254552,1770007843309,-200.70028911,0.00015473,2]
[404254553,1770007843319,-500.0,0.00015473,2]
[404254554,1770007843328,-500.0,0.00015473,2]
[404254555,1770007843338,-185.46503654,0.00015473,2]
[404254556,1770007843348,-500.0,0.00015473,2]
[404254557,1770007843358,-500.0,0.00015473,2]
[404254558,1770007843368,-500.0,0.00015473,2]
[404254559,1770007843378,-500.0,0.00015473,2]
[404254560,1770007843388,-500.0,0.00015473,2]
[404254561,1770007843400,-161.45537985,0.00015473,2]
[404254562,1770007843410,-501.12989903,0.00015473,2]
[404254563,1770007843420,-336.43827265,0.00015473,2]
[404254564,1770007843429,-512.94754167,0.00015473,2]
[404254565,1770007843439,-500.0,0.00015473,2]
[404254566,1770007843449,-500.0,0.00015473,2]
[404254567,1770007843459,-550.09529227,0.00015473,2]
[404254568,1770007843469,-500.0,0.00015473,2]
[404254569,1770007843478,-500.0,0.00015473,2]
[404254570,1770007843488,-501.96102054,0.00015473,2]
[404254571,1770007843497,-291.61164288,0.00015473,2]
[404254572,1770007843507,-500.0,0.00015473,2]
[404254573,1770007843517,-500.0,0.00015473,2]
[404254574,1770007843527,-235.57166318,0.00015494,2]
[404254575,1770007843537,-3637.57293296,0.00015504,2]
[404254576,1770007843546,-270.40551164,0.0001551,2]
[404254577,1770007843556,-166.66,0.00015536,2]
[404254578,1770007843566,-179.48047234,0.0001556,2]
[404254579,1770007843576,-150.00033856,0.00015579,2]
[404254580,1770007843585,-322.6107,0.0001563,2]
[404254581,1770007843595,-174.61919141,0.0001563,2]
[404254582,1770007843605,-250.0,0.0001563,2]
[404254583,1770007843616,-209.40437684,0.0001563,2]
[404254584,1770007843626,-151.0,0.0001563,2]
[404254585,1770007843635,-151.0,0.0001563,2]
[404254586,1770007843645,-250.0,0.0001563,2]
[404254587,1770007843658,-151.0,0.0001563,2]
[404254588,1770007843668,-250.0,0.0001563,2]
[404254589,1770007843678,-250.0,0.0001563,2]
[404254590,1770007843687,-151.0,0.0001563,2]
[404254591,1770007843697,-250.0,0.0001563,2]
[404254592,1770007843707,-151.0,0.0001563,2]
[404254593,1770007843716,-250.0,0.0001563,2]
[404254594,1770007843726,-151.0,0.0001563,2]
[404254595,1770007843736,-250.0,0.0001563,2]
[404254596,1770007843747,-151.0,0.0001563,2]
[404254597,1770007843757,-250.0,0.0001563,2]
[404254598,1770007843766,-151.0,0.0001563,2]
[404254599,1770007843775,-250.0,0.0001563,2]
[404254600,1770007843785,-151.0,0.0001563,2]
[404254601,1770007843795,-250.0,0.0001563,2]
[404254602,1770007843805,-209.40437684,0.0001563,2]
[404254603,1770007843814,-250.0,0.0001563,2]
[404254604,1770007843825,-151.0,0.0001563,2]
[404254605,1770007843836,-500.0,0.0001563,2]
[404254606,1770007843846,-151.0,0.0001563,2]
[404254607,1770007843855,-500.0,0.0001563,2]
[404254608,1770007843865,-500.0,0.0001563,2]
[404254609,1770007843874,-500.0,0.0001563,2]
[404254610,1770007843884,-500.0,0.0001563,2]
[404254611,1770007843894,-500.0,0.0001563,2]
[404254612,1770007843905,-500.0,0.0001563,2]
[404254613,1770007843915,-500.0,0.0001563,2]
[404254614,1770007843925,-500.0,0.0001563,2]
[404254615,1770007843934,-500.0,0.0001563,2]
[404254616,1770007843944,-344.38825217,0.0001563,2]
[404254617,1770007843953,-500.0,0.0001563,2]
[404254618,1770007843963,-500.0,0.0001563,2]
[404254619,1770007843973,-500.0,0.0001563,2]
[404254620,1770007843982,-250.0,0.0001563,2]
[404254621,1770007843992,-250.0,0.0001563,2]
[404254622,1770007844001,-250.0,0.0001563,2]
[404254623,1770007844010,-250.0,0.0001563,2]
[404254624,1770007844020,-1428.38747117,0.0001563,2]
[404254625,1770007844029,-250.0,0.0001563,2]
[404254626,1770007844038,-250.0,0.0001563,2]
[404254627,1770007844047,-721.12765535,0.0001563,2]
[404254628,1770007844056,-250.0,0.0001563,2]
[404254629,1770007844066,-250.0,0.0001563,2]
[404254630,1770007844075,-250.0,0.0001563,2]
[404254631,1770007844085,-250.0,0.0001563,2]
[404254632,1770007844094,-250.0,0.0001563,2]
[404254633,1770007844103,-500.0,0.0001563,2]
[404254634,1770007844113,-250.0,0.0001563,2]
[404254635,1770007844122,-250.0,0.0001563,2]
[404254636,1770007844132,-500.0,0.0001563,2]
[404254637,1770007844141,-250.0,0.0001563,2]
[404254638,1770007844152,-500.0,0.0001563,2]
[404254639,1770007844161,-250.0,0.0001563,2]
[404254640,1770007844170,-500.0,0.0001563,2]
[404254641,1770007844180,-250.0,0.0001563,2]
[404254642,1770007844189,-500.0,0.0001563,2]
[404254643,1770007844201,-250.0,0.0001563,2]
[404254644,1770007844211,-500.0,0.0001563,2]
[404254645,1770007844220,-250.0,0.0001563,2]
[404254646,1770007844230,-500.0,0.0001563,2]
[404254647,1770007844239,-250.0,0.0001563,2]
[404254648,1770007844248,-168.90333538,0.0001563,2]
[404254649,1770007844257,-250.0,0.0001563,2]
[404254650,1770007844267,-500.0,0.0001563,2]
[404254651,1770007844276,-250.0,0.0001563,2]
[404254652,1770007844286,-250.0,0.0001563,2]
[404254653,1770007844295,-250.0,0.0001563,2]
[404254654,1770007844304,-250.0,0.0001563,2]
[404254655,1770007844313,-250.0,0.0001563,2]
[404254656,1770007844322,-250.0,0.0001563,2]
[404254657,1770007844332,-250.0,0.0001563,2]
[404254658,1770007844340,-250.0,0.0001563,2]
[404254659,1770007844350,-250.0,0.0001563,2]
[404254660,1770007844359,-250.0,0.0001563,2]
[404254661,1770007844370,-250.0,0.0001563,2]
[404254662,1770007844379,-151.49674582,0.0001563,2]
[404254663,1770007844388,-250.0,0.0001563,2]
[404254664,1770007844399,-250.0,0.0001563,2]
[404254665,1770007844409,-578.20924308,0.0001563,2]
[404254666,1770007844418,-859.80605061,0.0001563,2]
[404254667,1770007844428,-500.0,0.0001563,2]
[404254668,1770007844436,-500.0,0.0001563,2]
[404254669,1770007844446,-500.0,0.0001563,2]
[404254670,1770007844455,-500.0,0.0001563,2]
[404254671,1770007844465,-500.0,0.0001563,2]
[404254672,1770007844474,-500.0,0.0001563,2]
[404254673,1770007844483,-500.0,0.0001563,2]
[404254674,1770007844493,-500.0,0.0001563,2]
[404254675,1770007844502,-500.0,0.0001563,2]
[404254676,1770007844512,-500.0,0.0001563,2]
[404254677,1770007844521,-500.0,0.0001563,2]
[404254678,1770007844531,-209.40437684,0.0001563,2]
[404254679,1770007844540,-500.0,0.0001563,2]
[404254680,1770007844549,-500.0,0.0001563,2]
[404254681,1770007844559,-500.0,0.0001563,2]
[404254682,1770007844568,-500.0,0.0001563,2]
[404254683,1770007844577,-500.0,0.0001563,2]
[404254684,1770007844587,-500.0,0.0001563,2]
[404254685,1770007844596,-500.0,0.0001563,2]
[404254686,1770007844605,-500.0,0.0001563,2]
[404254687,1770007844615,-500.0,0.0001563,2]
[404254688,1770007844624,-500.0,0.0001563,2]
[404254689,1770007844634,-500.0,0.0001563,2]
[404254690,1770007844644,-500.0,0.0001563,2]
[404254691,1770007844654,-500.0,0.0001563,2]
[404254692,1770007844664,-500.0,0.0001563,2]
[404254694,1770007844673,-500.0,0.0001563,2]
[404254696,1770007844683,-500.0,0.0001563,2]
[404254698,1770007844692,-500.0,0.0001563,2]
[404254700,1770007844702,-500.0,0.0001563,2]
[404254702,1770007844712,-500.0,0.0001563,2]
[404254704,1770007844721,-500.0,0.0001563,2]
[404254706,1770007844730,-500.0,0.0001563,2]
[404254708,1770007844739,-218.57821558,0.00015646,2]
[404254710,1770007844749,-576.83136917,0.00015646,2]
[404254712,1770007844758,-1017.59890922,0.00015646,2]
[404254714,1770007844769,-2351.0,0.00015657,2]
[404254717,1770007844779,-217.15233878,0.00015685,2]
[404254719,1770007844789,-16455.58898594,0.00015696,2]
[404254721,1770007844799,-15078.45490139,0.00015696,2]
[404254723,1770007844808,-225.18697532,0.0001574,2]
[404254725,1770007844818,-500.0,0.00015752,2]
[404254727,1770007844829,-753.99,0.00015753,2]
[404254729,1770007844839,-233.51889341,0.00015795,2]
[404254731,1770007844848,-242.15909246,0.0001585,2]
[404254733,1770007844858,-251.11897888,0.00015905,2]
[404254735,1770007844868,-260.4103811,0.0001596,2]
[404254737,1770007844877,-1600.0,0.00015962,2]
[404254739,1770007844887,-166.66,0.00015989,2]
[404254741,1770007844896,-270.0455652,0.00016015,2]
[404254743,1770007844907,-501.94112039,0.00016021,2]
[404254744,1770007844917,-1000.0,0.00016021,2]
[404254745,1770007844927,-1003.27979337,0.00016021,2]
[404254746,1770007844937,-1000.0,0.00016021,2]
[404254747,1770007844947,-1018.80564021,0.00016021,2]
[404254748,1770007844956,-1000.0,0.00016021,2]
[404254749,1770007844966,-502.28798495,0.00016021,2]
[404254750,1770007844975,-899.10712823,0.00016021,2]
[404254751,1770007844985,-1000.0,0.00016021,2]
[404254752,1770007844995,-1000.0,0.00016021,2]
[404254753,1770007845005,-1000.0,0.00016021,2]
[404254754,1770007845014,-1000.0,0.00016021,2]
[404254755,1770007845024,-1000.0,0.00016021,2]
[404254756,1770007845033,-1000.0,0.00016021,2]
[404254757,1770007845043,-1000.0,0.00016021,2]
[404254759,1770007845052,-1003.91068608,0.00016021,2]
[404254761,1770007845061,-1000.0,0.00016021,2]
[404254763,1770007845071,-1000.0,0.00016021,2]
[404254765,1770007845080,-501.09302375,0.00016021,2]
[404254767,1770007845090,-1000.0,0.00016021,2]
[404254769,1770007845099,-1000.0,0.00016021,2]
[404254770,1770007845109,-1000.0,0.00016021,2]
[404254771,1770007845118,-501.89927416,0.00016021,2]
[404254772,1770007845127,-586.45296103,0.00016021,2]
[404254773,1770007845136,-1000.0,0.00016021,2]
[404254774,1770007845146,-1000.0,0.00016021,2]
[404254775,1770007845156,-1000.0,0.00016021,2]
[404254776,1770007845166,-1000.0,0.00016021,2]
[404254777,1770007845175,-1003.56149344,0.00016021,2]
[404254778,1770007845185,-1000.0,0.00016021,2]
[404254779,1770007845194,-501.08336444,0.00016021,2]
[404254780,1770007845204,-1000.0,0.00016021,2]
[404254781,1770007845214,-1000.0,0.00016021,2]
[404254782,1770007845223,-1000.0,0.00016021,2]
[404254783,1770007845233,-1000.0,0.00016021,2]
[404254784,1770007845243,-1000.0,0.00016021,2]
[404254786,1770007845252,-1000.0,0.00016021,2]
[404254788,1770007845261,-1000.0,0.00016021,2]
[404254789,1770007845270,-1000.0,0.00016021,2]
[404254790,1770007845280,-1145.60955598,0.00016021,2]
[404254791,1770007845290,-280.03725112,0.0001607,2]
[404254792,1770007845299,-3412.42,0.00016116,2]
[404254793,1770007845308,-216.67,0.00016119,2]
[404254794,1770007845318,-290.39862941,0.00016125,2]
[404254795,1770007845328,-250.0,0.00016137,2]
[404254796,1770007845337,-576.0,0.00016164,2]
[404254797,1770007845347,-181.08010149,0.00016178,2]
[404254798,1770007845357,-217.15233878,0.00016178,2]
[404254800,1770007845367,-217.15233878,0.00016178,2]
[404254801,1770007845377,-1481.23780761,0.00016178,2]
[404254802,1770007845386,-891.61887448,0.00016178,2]
[404254803,1770007845395,-301.1433787,0.0001618,2]
[404254804,1770007845407,-95335.8267565,0.00016224,2]
[404254805,1770007845417,-16455.58898594,0.00016247,2]
[404254806,1770007845427,-15078.45490139,0.00016247,2]
[404254807,1770007845437,-270.40551164,0.00016307,2]
[404254808,1770007845447,-163.0,0.000164,2]
[404254809,1770007845456,-500.0,0.00016438,2]
[404254810,1770007845465,-419.34493254,0.00016438,2]
[404254811,1770007845474,-1130.05353836,0.00016438,2]
[404254812,1770007845484,-1130.05353836,0.00016438,2]
[404254813,1770007845493,-1130.05353836,0.00016438,2]
[404254814,1770007845502,-1130.05353836,0.00016438,2]
[404254815,1770007845512,-1130.05353836,0.00016438,2]
[404254816,1770007845521,-1130.05353836,0.00016438,2]
[404254817,1770007845531,-1130.05353836,0.00016438,2]
[404254818,1770007845540,-1130.05353836,0.00016438,2]
[404254819,1770007845549,-1130.05353836,0.00016438,2]
[404254820,1770007845558,-1130.05353836,0.00016438,2]
[404254821,1770007845567,-1130.05353836,0.00016438,2]
[404254822,1770007845577,-1130.05353836,0.00016438,2]
[404254823,1770007845587,-1130.05353836,0.00016438,2]
[404254824,1770007845597,-1130.05353836,0.00016438,2]
[404254825,1770007845606,-1130.05353836,0.00016438,2]
[404254826,1770007845616,-1130.05353836,0.00016438,2]
[404254827,1770007845625,-1130.05353836,0.00016438,2]
[404254828,1770007845635,-1130.05353836,0.00016438,2]
[404254829,1770007845644,-1130.05353836,0.00016438,2]
[404254830,1770007845655,-1130.05353836,0.00016438,2]
[404254831,1770007845665,-1130.05353836,0.00016438,2]
[404254832,1770007845676,-1130.05353836,0.00016438,2]
[404254833,1770007845685,-1130.05353836,0.00016438,2]
[404254834,1770007845695,-1130.05353836,0.00016438,2]
[404254835,1770007845705,-1130.05353836,0.00016438,2]
[404254836,1770007845715,-1130.05353836,0.00016438,2]
[404254837,1770007845724,-1130.05353836,0.00016438,2]